bitfinex-derivatives/quotes_SOLF0:USTF0_20220110
["timestamp","ask_amount","ask_price","bid_price","bid_amount"]
[1641838081111,8.24844356,133.33,133.29,2.28334002]
[1641838081411,8.24844356,133.33,133.29,4.002e-05]
[1641838081412,4.0,133.32,133.29,4.002e-05]
[1641838081610,31.66479,133.3,133.22,15.74370206]
[1641838081811,6.00294881,133.27,133.22,15.74370206]
[1641838082512,4.0,133.25,133.21,27.66479]
[1641838082711,4.0,133.24,133.21,27.66479]
[1641838083111,4.0,133.25,133.21,27.66479]
[1641838083511,4.0,133.26,133.21,27.66479]
[1641838083713,4.0,133.26,133.19,27.66479]
[1641838083911,6.00302284,133.27,133.19,27.66479]
[1641838084112,7.20183919,133.3,133.19,27.66479]
[1641838084317,7.20183919,133.3,133.19,35.1677912]
[1641838084513,4.0,133.29,133.19,35.1677912]
[1641838084915,4.0,133.27,133.19,35.1677912]
[1641838085116,4.0,133.27,133.19,27.66479]
[1641838085318,4.0,133.26,133.19,27.66479]
[1641838085520,4.0,133.22,133.2,2.5694692]
[1641838085719,9.96,133.22,133.2,2.5694692]
[1641838085918,4.0,133.21,133.2,2.5694692]
[1641838086521,4.0,133.21,133.15,2.5694692]
[1641838086921,4.0,133.2,133.15,2.5694692]
[1641838087720,4.0,133.2,133.12,27.66479]
[1641838087920,4.0,133.17,133.12,27.66479]
[1641838088223,4.0,133.14,133.1,15.74370206]
[1641838088420,10.00846482,133.15,133.1,15.74370206]
[1641838088822,10.00846482,133.15,133.06,7.51060873]
[1641838089020,4.0,133.13,133.06,7.51060873]
[1641838089420,4.0,133.14,133.06,7.51060873]
[1641838089622,6.00846482,133.15,133.07,27.66479]
[1641838089823,27.66479,133.16,133.07,27.66479]
[1641838090022,7.20814215,133.19,133.09,4.0]
[1641838090321,31.91575146,133.21,133.11,7.50750751]
[1641838090522,35.91575146,133.21,133.09,4.0]
[1641838090722,4.0,133.2,133.09,11.50891684]
[1641838091328,31.91575146,133.21,133.09,11.50891684]
[1641838091523,35.91575146,133.21,133.09,11.50891684]
[1641838091724,31.91575146,133.21,133.13,27.66479]
[1641838091923,35.91575146,133.21,133.13,27.66479]
[1641838092923,4.25096146,133.21,133.13,27.66479]
[1641838094125,4.0,133.22,133.13,27.66479]
[1641838094327,4.0,133.21,133.13,27.66479]
[1641838094526,4.0,133.2,133.11,27.66479]
[1641838094728,14.2585631,133.2,133.11,27.66479]
[1641838095928,4.0,133.19,133.11,27.66479]
[1641838096126,14.2585631,133.2,133.11,27.66479]
[1641838096529,4.0,133.19,133.11,27.66479]
[1641838096728,4.0,133.18,133.11,27.66479]
[1641838096927,10.00728413,133.18,133.1,27.66479]
[1641838097327,6.00818042,133.16,133.04,15.74370206]
[1641838097528,10.00906619,133.14,133.04,15.74370206]
[1641838097727,4.0,133.13,133.06,27.66479]
[1641838098528,6.00906619,133.14,133.06,27.66479]
[1641838100030,10.00906619,133.14,133.06,27.66479]
[1641838100830,6.00906619,133.14,133.06,27.66479]
[1641838101031,6.0062265,133.2,133.09,4.0]
[1641838101230,6.0062265,133.2,133.1,7.50835304]
[1641838101431,6.0062265,133.2,133.11,4.0]
[1641838101631,13.24388062,133.21,133.1,31.50835304]
[1641838101830,13.24388062,133.21,133.14,27.66479]
[1641838101831,17.24388062,133.21,133.14,27.66479]
[1641838102034,8.25224848,133.19,133.14,27.66479]
[1641838102233,4.0,133.18,133.12,27.66479]
[1641838102532,10.00733935,133.18,133.12,27.66479]
[1641838102932,6.00733935,133.18,133.07,1.34335413]
[1641838103132,76.2346,133.17,133.07,1.34335413]
[1641838103333,4.0,133.15,133.07,1.34335413]
[1641838103534,144.045,133.17,133.07,1.34335413]
[1641838103733,6.00849773,133.15,133.07,1.34335413]
[1641838103934,4.25389407,133.13,133.08,27.66479]
[1641838105038,6.00985704,133.12,133.07,1.34335413]
[1641838105636,4.0,133.11,133.07,1.34335413]
[1641838106136,6.00985704,133.12,133.06,27.66479]
[1641838107138,4.25389407,133.13,133.06,27.66479]
[1641838107938,4.25389407,133.13,133.08,27.66479]
[1641838108139,4.0,133.15,133.08,27.66479]
[1641838108340,4.25359179,133.12,133.08,27.66479]
[1641838108741,4.25359179,133.12,133.08,39.17398877]
[1641838108945,4.25359179,133.12,133.08,35.17398877]
[1641838109143,4.25359179,133.12,133.08,39.17398877]
[1641838109345,4.25359179,133.12,133.08,35.17398877]
[1641838109745,9.179e-05,133.12,133.08,27.66479]
[1641838109944,9.179e-05,133.12,133.09,2.56707047]
[1641838111748,9.179e-05,133.12,133.07,2.56707047]
[1641838111950,9.179e-05,133.12,133.09,27.66479]
[1641838112650,4.0,133.17,133.09,27.66479]
[1641838113452,11.20842434,133.18,133.1,2.57571269]
[1641838113649,7.20842434,133.18,133.1,2.57571269]
[1641838114051,7.20842434,133.18,133.1,6.57571269]
[1641838114251,7.20842434,133.18,133.1,2.57571269]
[1641838114852,4.25442416,133.14,133.1,2.57571269]
[1641838118858,12.82276888,133.17,133.1,2.57571269]
[1641838119057,4.25365225,133.13,133.1,2.57571269]
[1641838120160,4.25365225,133.13,133.09,10.38662782]
[1641838120359,4.0,133.11,133.06,41.64201069]
[1641838120559,6.00961966,133.12,133.06,41.64201069]
[1641838120760,6.00961966,133.12,133.02,41.64201069]
[1641838121160,6.00961966,133.12,133.11,2.19305034]
[1641838121359,6.00961966,133.12,133.02,41.64201069]
[1641838121360,10.00961966,133.12,133.02,41.64201069]
[1641838121561,6.00961966,133.12,133.02,41.64201069]
[1641838121761,6.00961966,133.12,133.01,53.15544095]
[1641838121962,6.00961966,133.12,133.04,27.66479]
[1641838122762,10.00961966,133.12,133.04,27.66479]
[1641838123463,14.26326295,133.12,133.04,27.66479]
[1641838123663,10.26326295,133.12,133.04,27.66479]
[1641838124364,4.25364329,133.12,133.04,27.66479]
[1641838125766,14.26360765,133.12,133.04,27.66479]
[1641838126067,10.26360765,133.12,133.04,27.66479]
[1641838126467,14.26360765,133.12,133.04,27.66479]
[1641838126667,10.26360765,133.12,133.04,27.66479]
[1641838126868,4.25364329,133.12,133.05,7.51117287]
[1641838127068,4.25364329,133.12,133.04,31.66479]
[1641838127667,27.66479,133.15,133.04,27.66479]
[1641838127869,4.25510831,133.11,133.04,27.66479]
[1641838128068,4.25510831,133.11,133.07,27.66479]
[1641838128669,4.25510831,133.11,133.04,27.66479]
[1641838129470,6.01072638,133.1,133.04,27.66479]
[1641838129969,6.01072638,133.1,133.02,27.66479]
[1641838130169,6.01072638,133.1,133.05,2.23740021]
[1641838130373,31.91989831,133.11,133.05,2.23740021]
[1641838130374,4.25510831,133.11,133.05,2.23740021]
[1641838131371,4.25510831,133.11,133.06,4.0]
[1641838131570,7.21020107,133.15,133.06,4.0]
[1641838131571,6.00675779,133.19,133.09,4.0]
[1641838131772,61.30687331,133.22,133.1,11.50835304]
[1641838131974,61.30687331,133.22,133.15,27.66479]
[1641838132373,54.28878191,133.23,133.15,27.66479]
[1641838132571,50.28878191,133.23,133.15,27.66479]
[1641838133173,41.64201069,133.23,133.17,4.0]
[1641838133372,41.64201069,133.25,133.18,4.0]
[1641838133874,41.64201069,133.25,133.19,4.0]
[1641838134073,41.64201069,133.25,133.22,27.66479]
[1641838134675,61.30687331,133.29,133.22,27.66479]
[1641838134876,145.99989112,133.31,133.22,27.66479]
[1641838134877,14.37059572,133.3,133.22,27.66479]
[1641838135075,4.0,133.29,133.22,27.66479]
[1641838135277,4.0,133.28,133.2,27.66479]
[1641838135676,4.0,133.27,133.2,27.66479]
[1641838135876,7.50581701,133.29,133.2,27.66479]
[1641838136076,35.17060701,133.29,133.2,27.66479]
[1641838136778,7.50581701,133.29,133.2,27.66479]
[1641838137179,52.01260641,133.3,133.2,27.66479]
[1641838137382,52.01260641,133.3,133.2,31.66479]
[1641838137582,10.37059572,133.3,133.2,31.66479]
[1641838137781,10.37059572,133.3,133.2,27.66479]
[1641838137981,4.0,133.28,133.22,27.66479]
[1641838138382,7.50609871,133.29,133.22,27.66479]
[1641838138584,88.9893494,133.3,133.22,27.66479]
[1641838138881,6.71853464,133.28,133.22,27.66479]
[1641838139282,4.0,133.27,133.22,27.66479]
[1641838139482,4.0,133.25,133.15,9.38025368]
[1641838139681,4.0,133.25,133.15,7.50525368]
[1641838139883,10.00459135,133.24,133.15,7.50525368]
[1641838140084,6.00459135,133.24,133.16,27.66479]
[1641838140282,10.00459135,133.24,133.16,27.66479]
[1641838140483,4.0,133.23,133.16,27.66479]
[1641838140684,10.00527259,133.22,133.16,27.66479]
[1641838140883,6.00527259,133.22,133.14,27.66479]
[1641838141085,6.00625776,133.2,133.14,27.66479]
[1641838141284,6.00625776,133.2,133.1,7.50835304]
[1641838141485,10.00625776,133.2,133.1,7.50835304]
[1641838141885,6.00751664,133.17,133.1,7.50835304]
[1641838142086,6.00751664,133.17,133.1,35.17314304]
[1641838142490,6.00751664,133.17,133.1,27.66479]
[1641838142685,13.59751664,133.17,133.08,27.66479]
[1641838142886,4.0,133.16,133.08,27.66479]
[1641838143386,4.0,133.15,133.08,27.66479]
[1641838143787,4.0,133.14,133.08,27.66479]
[1641838144086,6.0085607,133.15,133.08,27.66479]
[1641838144687,27.66479,133.18,133.08,27.66479]
[1641838145188,7.51145497,133.19,133.08,27.66479]
[1641838145687,4.0,133.17,133.08,27.66479]
[1641838146089,4.0,133.17,133.1,27.66479]
[1641838147187,11.51145497,133.19,133.1,27.66479]
[1641838147387,4.25387372,133.15,133.1,27.66479]
[1641838147987,4.25387372,133.15,133.12,27.66479]
[1641838149987,4.25387372,133.15,133.14,27.66479]
[1641838150190,6.00377247,133.25,133.14,31.66479]
[1641838150987,19.80850298,133.27,133.15,4.0]
[1641838151187,4.0,133.26,133.15,6.869]
[1641838151387,4.25361631,133.18,133.15,6.869]
[1641838152089,4.25361631,133.18,133.17,27.66479]
[1641838155491,77.56371557,133.24,133.17,27.66479]
[1641838155690,10.49401557,133.24,133.17,27.66479]
[1641838156090,10.49401557,133.24,133.2,27.66479]
[1641838156490,4.48977324,133.24,133.2,27.66479]
[1641838158095,4.48977324,133.24,133.17,30.51296394]
[1641838158495,6.00356338,133.26,133.17,30.51296394]
[1641838160198,6.00361192,133.26,133.21,27.66479]
[1641838161499,6.00361192,133.26,133.21,31.78842126]
[1641838161699,6.00402557,133.25,133.21,4.12363126]
[1641838161898,3.41158654,133.21,133.14,15.80850298]
[1641838162098,4.0,133.2,133.14,15.80850298]
[1641838162298,4.0,133.18,133.14,15.80850298]
[1641838162699,4.0,133.17,133.13,15.80850298]
[1641838163701,4.0,133.17,133.11,2.57716536]
[1641838164601,4.0,133.16,133.11,2.57716536]
[1641838166303,4.0,133.17,133.11,2.57716536]
[1641838166803,4.0,133.16,133.11,2.57716536]
[1641838167203,4.0,133.16,133.14,4.12555203]
[1641838167805,4.0,133.15,133.07,43.47329298]
[1641838168004,4.0,133.13,133.07,15.80850298]
[1641838168205,4.0,133.1,133.07,15.80850298]
[1641838168409,4.0,133.1,133.08,2.57731316]
[1641838168704,6.01021862,133.11,133.08,2.57731316]
[1641838168904,4.0,133.1,133.08,2.57731316]
[1641838169105,6.01021862,133.11,133.08,2.57731316]
[1641838169304,10.01021862,133.11,133.08,2.57731316]
[1641838169505,10.01021862,133.11,133.05,15.80850298]
[1641838169705,10.01021862,133.11,133.04,7.51145497]
[1641838170305,6.01021862,133.11,133.05,27.66479]
[1641838170506,4.0,133.1,133.05,27.66479]
[1641838171507,6.01021862,133.11,133.05,27.66479]
[1641838171706,6.01098998,133.09,133.05,27.66479]
[1641838172308,6.01098998,133.09,133.03,43.47329298]
[1641838172907,10.01098998,133.09,133.03,43.47329298]
[1641838173108,10.01098998,133.09,133.04,2.57484804]
[1641838173911,6.01154385,133.08,133.04,2.57484804]
[1641838174711,6.01154385,133.08,133.03,27.66479]
[1641838176214,4.0,133.05,133.0,15.80850298]
[1641838176412,4.0,133.04,132.99,15.80850298]
[1641838176612,6.01347191,133.04,132.99,15.80850298]
[1641838176810,10.01347191,133.04,132.99,15.80850298]
[1641838177011,6.01439481,133.02,132.99,15.80850298]
[1641838177412,6.01439481,133.02,132.96,18.38063064]
[1641838177612,7.2146519,133.07,132.96,18.38063064]
[1641838177812,4.25520612,133.08,132.98,4.0]
[1641838178012,10.26694781,133.08,132.96,22.38063064]
[1641838178213,10.26694781,133.08,132.98,7.51512419]
[1641838178412,10.26694781,133.08,132.96,22.38063064]
[1641838178413,6.01310547,133.05,133.0,27.66479]
[1641838178612,10.01310547,133.05,132.99,2.57212766]
[1641838179013,6.01310547,133.05,132.99,2.57212766]
[1641838179212,10.01310547,133.05,132.96,7.5162539]
[1641838179612,6.01390607,133.03,132.96,7.5162539]
[1641838180012,7.21425809,133.07,132.98,4.0]
[1641838180312,4.25632546,133.07,132.99,4.0]
[1641838180514,15.80850298,133.12,133.05,4.0]
[1641838180713,13.22066612,133.13,133.05,4.0]
[1641838180714,21.81784799,133.13,133.06,29.38704468]
[1641838180913,15.80850298,133.13,133.09,7.50863493]
[1641838181714,6.00698086,133.18,133.09,7.50863493]
[1641838181915,10.00698086,133.18,133.09,7.50863493]
[1641838182518,4.0,133.17,133.12,27.66479]
[1641838182917,10.00698086,133.18,133.12,27.66479]
[1641838183116,4.0,133.17,133.12,27.66479]
[1641838183316,6.0079914,133.16,133.12,27.66479]
[1641838185520,10.0079914,133.16,133.12,27.66479]
[1641838185719,6.00872721,133.14,133.12,27.66479]
[1641838185919,6.00872721,133.14,133.09,27.66479]
[1641838186121,4.0,133.13,133.09,27.66479]
[1641838186319,6.01008923,133.11,133.02,15.80850298]
[1641838186623,10.01008923,133.11,133.05,27.66479]
[1641838187420,6.01008923,133.11,133.05,27.66479]
[1641838187623,6.01161323,133.08,133.05,27.66479]
[1641838187823,6.01161323,133.08,133.02,7.51286578]
[1641838188521,6.01161323,133.08,133.02,35.17765578]
[1641838189722,6.01269393,133.06,133.02,27.66479]
[1641838190724,7.21215383,133.11,133.02,27.66479]
[1641838191525,7.21215383,133.11,133.03,1.83204945]
[1641838191726,11.21215383,133.11,133.03,1.83204945]
[1641838191924,7.21215383,133.11,133.03,1.83204945]
[1641838192124,7.21215383,133.11,133.03,4.40355562]
[1641838192525,34.87694383,133.11,133.03,4.40355562]
[1641838192924,34.87694383,133.11,133.04,2.57150617]
[1641838193327,6.01090194,133.1,133.04,2.57150617]
[1641838195127,6.01114059,133.09,133.04,2.57150617]
[1641838196526,27.66479,133.11,133.05,27.66479]
[1641838197327,27.66479,133.11,133.06,4.0]
[1641838197727,27.66479,133.11,133.05,31.66479]
[1641838197927,27.66479,133.13,133.05,47.47329298]
[1641838198128,15.80850298,133.18,133.12,4.0]
[1641838198627,15.80850298,133.18,133.09,20.0]
[1641838198628,15.80850298,133.18,133.17,27.66479]
[1641838199028,2.70844267,133.19,133.17,27.66479]
[1641838199230,6.00729472,133.18,133.08,26.21070278]
[1641838200329,6.00729472,133.18,133.08,2.57731135]
[1641838200529,10.00729472,133.18,133.1,27.66479]
[1641838201029,6.00729472,133.18,133.1,27.66479]
[1641838201532,71.485,133.19,133.1,27.66479]
[1641838201533,15.80850298,133.2,133.1,27.66479]
[1641838201731,15.80850298,133.2,133.11,4.0]
[1641838202131,15.80850298,133.21,133.11,4.0]
[1641838202529,15.80850298,133.21,133.15,27.66479]
[1641838202932,6.00546243,133.22,133.15,27.66479]
[1641838203534,2.70446093,133.21,133.15,27.66479]
[1641838205036,6.70446093,133.21,133.15,27.66479]
[1641838205235,4.0,133.19,133.1,27.66479]
[1641838205436,10.00689699,133.19,133.1,27.66479]
[1641838205637,6.00689699,133.19,133.1,27.66479]
[1641838206437,10.00705717,133.18,133.1,27.66479]
[1641838206637,6.00705717,133.18,133.13,27.66479]
[1641838207040,4.0,133.17,133.13,27.66479]
[1641838207238,10.00838269,133.15,133.1,27.66479]
[1641838208437,6.00838269,133.15,133.1,27.66479]
[1641838208642,7.20930914,133.17,133.13,27.66479]
[1641838208837,15.84229322,133.18,133.13,27.66479]
[1641838209337,21.84844836,133.2,133.13,27.66479]
[1641838209940,15.84229322,133.2,133.13,27.66479]
[1641838210140,2.70437017,133.19,133.13,27.66479]
[1641838211542,6.00699111,133.18,133.11,2.92826437]
[1641838211741,4.0,133.17,133.11,2.92826437]
[1641838211941,6.00834197,133.15,133.11,2.92826437]
[1641838212342,23.04884576,133.22,133.11,2.92826437]
[1641838212545,23.04884576,133.22,133.16,27.66479]
[1641838212942,2.70714571,133.21,133.16,27.66479]
[1641838214744,2.70714571,133.21,133.14,30.59259632]
[1641838214745,4.0,133.22,133.14,30.59259632]
[1641838214946,4.25363088,133.18,133.14,30.59259632]
[1641838216548,4.25363088,133.18,133.17,27.66479]
[1641838217548,4.25363088,133.18,133.14,30.59259632]
[1641838217948,4.0,133.17,133.1,15.84229322]
[1641838218149,6.00823768,133.16,133.05,15.84229322]
[1641838218550,6.00823768,133.16,133.05,19.84229322]
[1641838218749,6.00823768,133.16,133.08,27.66479]
[1641838218949,30.37147467,133.17,133.08,27.66479]
[1641838219349,27.66479,133.17,133.08,27.66479]
[1641838219850,27.66479,133.17,133.15,2.92764109]
[1641838220850,31.66479,133.17,133.15,2.92764109]
[1641838221055,6.00849,133.15,133.07,15.84229322]
[1641838221251,4.0,133.12,133.07,15.84229322]
[1641838221450,6.01031467,133.11,133.07,15.84229322]
[1641838221950,7.21062676,133.14,133.07,15.84229322]
[1641838222151,23.05291998,133.14,133.05,11.51117287]
[1641838222854,23.05291998,133.14,133.08,27.66479]
[1641838223253,7.21062676,133.14,133.08,27.66479]
[1641838223654,13.21949274,133.14,133.08,27.66479]
[1641838223854,13.21949274,133.14,133.06,46.08866064]
[1641838224053,13.21949274,133.14,133.09,2.92831412]
[1641838225355,6.00886598,133.14,133.09,2.92831412]
[1641838225553,15.24419934,133.14,133.09,2.92831412]
[1641838225754,9.23533336,133.14,133.09,6.92831412]
[1641838226154,9.23533336,133.14,133.09,2.92831412]
[1641838226353,9.23533336,133.14,133.1,4.0]
[1641838226553,9.23533336,133.14,133.09,6.92831412]
[1641838226754,9.23533336,133.14,133.12,27.66479]
[1641838227355,4.25467383,133.13,133.12,27.66479]
[1641838227856,4.25467383,133.13,133.1,5.774]
[1641838231456,6.00908684,133.14,133.1,5.774]
[1641838231658,4.25360625,133.13,133.1,5.774]
[1641838234262,6.0086878,133.15,133.1,5.774]
[1641838234960,4.25432184,133.12,133.11,2.10984234]
[1641838238065,6.00896236,133.14,133.08,27.66479]
[1641838238263,6.00896236,133.14,133.08,31.66479]
[1641838238465,15.84229322,133.17,133.08,31.66479]
[1641838238662,4.25452368,133.12,133.08,31.66479]
[1641838238864,4.25452368,133.12,133.11,27.66479]
[1641838239063,2.368e-05,133.12,133.11,27.66479]
[1641838239464,2.368e-05,133.12,133.11,29.77463541]
[1641838239663,2.368e-05,133.12,133.11,39.05176804]
[1641838240064,2.368e-05,133.12,133.11,43.05176804]
[1641838240464,2.368e-05,133.12,133.11,44.92876804]
[1641838240964,2.368e-05,133.12,133.11,40.92876804]
[1641838241165,2.368e-05,133.12,133.11,39.05176804]
[1641838241765,4.25374777,133.16,133.11,39.05176804]
[1641838242466,4.25374777,133.16,133.11,34.35679]
[1641838242667,4.25374777,133.16,133.11,36.8319494]
[1641838243268,4.25374777,133.16,133.12,2.58510349]
[1641838244067,4.25374777,133.16,133.12,6.58510349]
[1641838244566,4.25374777,133.16,133.13,4.0]
[1641838244769,4.25374777,133.16,133.12,6.58510349]
[1641838244966,4.25374777,133.16,133.15,27.66479]
[1641838245568,15.84229322,133.21,133.15,27.66479]
[1641838245968,15.84229322,133.2,133.15,27.66479]
[1641838246972,18.55587095,133.21,133.15,27.66479]
[1641838248971,22.55587095,133.21,133.15,27.66479]
[1641838249171,6.00634504,133.2,133.12,2.1091305]
[1641838250272,6.00724837,133.18,133.13,2.58328741]
[1641838250672,2.71357773,133.19,133.13,2.58328741]
[1641838251072,6.00632914,133.2,133.13,2.58328741]
[1641838251274,6.00632914,133.2,133.16,2.95934605]
[1641838251873,2.71243478,133.19,133.16,2.95934605]
[1641838253177,3.478e-05,133.19,133.17,4.0]
[1641838253377,15.84229322,133.21,133.18,4.0]
[1641838253577,27.66479,133.22,133.18,4.0]
[1641838253776,42.24611526,133.26,133.21,11.50159409]
[1641838253976,42.24611526,133.26,133.22,4.0]
[1641838254577,52.24668153,133.33,133.22,4.0]
[1641838254877,48.24668153,133.33,133.23,4.0]
[1641838255077,48.24668153,133.33,133.26,27.66479]
[1641838255478,42.24611526,133.33,133.28,4.0]
[1641838255678,42.24611526,133.33,133.3,4.0]
[1641838255879,10.73477783,133.34,133.29,4.0]
[1641838256278,10.73477783,133.34,133.3,4.0]
[1641838256478,10.73477783,133.34,133.32,4.0]
[1641838256878,42.24611526,133.35,133.32,4.0]
[1641838257078,42.24611526,133.38,133.34,59.32958]
[1641838257278,42.24611526,133.38,133.35,4.0]
[1641838257478,42.24611526,133.38,133.36,4.0]
[1641838257880,42.24611526,133.38,133.37,4.0]
[1641838258081,16.11573504,133.38,133.37,13.36632037]
[1641838258280,11.02,133.44,133.37,13.36632037]
[1641838258482,10.73477783,133.45,133.43,4.0]
[1641838258681,10.73477783,133.45,133.44,4.0]
[1641838259079,10.73477783,133.45,133.44,59.32958]
[1641838259282,0.73477783,133.45,133.44,66.81797299]
[1641838259482,16.67675205,133.57,133.44,68.69097299]
[1641838259683,16.67675205,133.57,133.47,4.0]
[1641838260284,16.67675205,133.57,133.48,4.0]
[1641838260492,67.36917289,133.58,133.47,4.0]
[1641838260683,27.66479,133.6,133.48,4.0]
[1641838260885,31.66479,133.6,133.48,4.0]
[1641838261085,31.66479,133.6,133.5,27.66479]
[1641838261484,27.66479,133.6,133.5,27.66479]
[1641838261885,4.0,133.56,133.44,37.02418299]
[1641838262085,7.49119784,133.55,133.44,27.66479]
[1641838262286,11.49119784,133.55,133.44,31.66479]
[1641838262487,11.49119784,133.55,133.44,27.66479]
[1641838262685,4.0,133.53,133.44,27.66479]
[1641838262886,7.49119784,133.55,133.46,4.0]
[1641838263087,7.49119784,133.55,133.49,27.66479]
[1641838263488,27.66479,133.6,133.5,4.0]
[1641838263690,27.66479,133.6,133.49,27.66479]
[1641838263888,27.66479,133.6,133.51,4.0]
[1641838264088,27.66479,133.6,133.5,4.0]
[1641838264889,27.66479,133.6,133.49,35.15122084]
[1641838265089,27.66479,133.6,133.53,27.66479]
[1641838266090,27.66479,133.6,133.51,1.871]
[1641838266294,27.66479,133.6,133.5,24.0]
[1641838266994,27.66479,133.6,133.51,4.0]
[1641838267293,27.66479,133.6,133.52,27.66479]
[1641838267893,5.98581331,133.65,133.56,4.0]
[1641838268094,5.98581331,133.65,133.58,4.0]
[1641838268295,89.0,133.7,133.6,4.0]
[1641838268495,102.27341703,133.71,133.6,4.0]
[1641838268694,98.27341703,133.71,133.6,4.0]
[1641838269094,11.38,133.71,133.64,4.0]
[1641838269294,11.38,133.71,133.69,27.66479]
[1641838269596,27.66479,133.78,133.7,4.0]
[1641838269896,63.36917289,133.8,133.71,4.0]
[1641838270095,14.32908961,133.84,133.72,4.0]
[1641838270295,10.32908961,133.84,133.74,4.0]
[1641838270495,11.0,133.86,133.73,7.47272456]
[1641838270695,7.47440018,133.85,133.72,5.868]
[1641838270895,7.47663551,133.81,133.71,5.868]
[1641838271095,96.47663551,133.81,133.71,1.868]
[1641838271295,27.66479,133.79,133.72,27.66479]
[1641838271695,5.97706027,133.85,133.72,39.13835227]
[1641838271895,5.97706027,133.85,133.73,7.47272456]
[1641838272096,7.47272456,133.88,133.76,4.0]
[1641838272297,4.0,133.9,133.76,11.47132878]
[1641838272499,4.0,133.91,133.77,7.47049156]
[1641838272697,110.79375522,133.92,133.79,4.0]
[1641838272897,4.0,133.92,133.8,4.0]
[1641838273097,4.0,133.93,133.82,7.46798103]
[1641838273399,81.52852625,133.97,133.84,27.66479]
[1641838273400,4.0,133.92,133.84,27.66479]
[1641838273598,4.0,133.92,133.84,31.66479]
[1641838273798,27.66479,133.95,133.84,27.66479]
[1641838273999,89.0,133.94,133.84,27.66479]
[1641838274198,7.47188703,133.9,133.77,21.867]
[1641838274399,96.47244536,133.89,133.77,1.867]
[1641838274598,96.47244536,133.89,133.76,1.868]
[1641838274799,106.44757977,133.89,133.74,7.47244536]
[1641838274998,102.44757977,133.89,133.74,11.47244536]
[1641838275199,2.11896486,133.79,133.76,27.66479]
[1641838275401,2.11896486,133.79,133.69,1.868]
[1641838275598,2.11896486,133.79,133.67,14.6575082]
[1641838275599,2.11896486,133.79,133.67,7.47607656]
[1641838276000,2.11896486,133.79,133.7,4.0]
[1641838276200,2.11896486,133.79,133.71,4.0]
[1641838276702,2.11896486,133.79,133.7,10.106]
[1641838276900,2.11896486,133.79,133.7,15.71140018]
[1641838277200,4.0,133.77,133.7,8.237]
[1641838277399,4.0,133.77,133.68,27.66479]
[1641838277601,6.11896486,133.79,133.68,27.66479]
[1641838278001,4.0,133.78,133.68,27.66479]
[1641838278202,4.0,133.75,133.68,27.66479]
[1641838278402,4.0,133.74,133.62,31.77889644]
[1641838278604,4.0,133.74,133.61,7.47943156]
[1641838278804,4.0,133.73,133.61,7.47943156]
[1641838279003,4.0,133.72,133.61,7.47943156]
[1641838279206,27.66479,133.72,133.61,35.14422156]
[1641838279404,4.0,133.69,133.61,27.66479]
[1641838279603,4.0,133.67,133.59,27.66479]
[1641838279803,4.0,133.7,133.56,7.4822297]
[1641838280004,4.0,133.68,133.56,7.4822297]
[1641838280205,4.0,133.61,133.54,1.87]
[1641838280404,4.0,133.62,133.52,7.48446973]
[1641838280605,11.48446973,133.67,133.53,24.0]
[1641838280805,13.46750131,133.69,133.53,25.871]
[1641838280806,5.98415176,133.69,133.53,25.871]
[1641838281008,5.98415176,133.69,133.56,7.4822297]
[1641838281207,5.98415176,133.69,133.53,55.79991882]
[1641838281208,33.64894176,133.69,133.6,27.66479]
[1641838281405,27.66479,133.69,133.6,27.66479]
[1641838281606,31.66479,133.69,133.6,27.66479]
[1641838281808,11.48446973,133.67,133.56,1.87]
[1641838282005,27.66479,133.69,133.51,7.48502994]
[1641838282006,11.48502994,133.66,133.51,7.48502994]
[1641838282506,31.66479,133.69,133.56,7.4822297]
[1641838282707,4.0,133.67,133.56,6.047]
[1641838283307,4.0,133.66,133.56,33.71179]
[1641838283507,4.0,133.64,133.56,33.71179]
[1641838283707,4.0,133.63,133.56,6.047]
[1641838283908,7.48502994,133.66,133.54,27.66479]
[1641838284109,4.0,133.62,133.49,1.871]
[1641838284310,4.0,133.59,133.48,7.48671109]
[1641838284509,70.5271,133.61,133.48,7.48671109]